fUSD/lending_fUSD_20251010
["ID","MTS","AMOUNT","RATE_DAILY","PERIOD"]
[390465585,1760055048603,-412.2077088,0.00021917,2]
[390465586,1760055048613,-500.0,0.00021917,2]
[390465587,1760055048622,-501.24,0.00021917,2]
[390465588,1760055048631,-500.0,0.00021917,2]
[390465589,1760055048641,-500.0,0.00021917,2]
[390465590,1760055048650,-1808.55,0.00021917,2]
[390465591,1760055048659,-1641.06,0.00021917,2]
[390465592,1760055048669,-500.0,0.00021917,2]
[390465593,1760055048678,-500.0,0.00021917,2]
[390465594,1760055048688,-500.0,0.00021917,2]
[390465595,1760055048697,-500.0,0.00021917,2]
[390465596,1760055048707,-2780.77,0.00021917,2]
[390465597,1760055048716,-672.78,0.00021917,2]
[390465598,1760055048725,-538.16,0.00021917,2]
[390465599,1760055048734,-500.0,0.00021917,2]
[390465600,1760055048744,-500.0,0.00021917,2]
[390465601,1760055048753,-590.84,0.00021917,2]
[390465602,1760055048763,-500.0,0.00021917,2]
[390465603,1760055048773,-500.0,0.00021917,2]
[390465604,1760055048782,-500.0,0.00021917,2]
[390465605,1760055048792,-500.0,0.00021917,2]
[390465606,1760055048801,-502.62010436,0.00021917,2]
[390465607,1760055048811,-155.41025676,0.00021917,2]
[390465608,1760055049754,-1721.16974324,0.00021917,2]
[390465609,1760055049765,-500.0,0.00021917,2]
[390465610,1760055049774,-843.33,0.00021917,2]
[390465611,1760055049784,-500.0,0.00021917,2]
[390465612,1760055049793,-3426.18,0.00021917,2]
[390465613,1760055049802,-500.0,0.00021917,2]
[390465614,1760055049811,-503.07,0.00021917,2]
[390465615,1760055049821,-500.0,0.00021917,2]
[390465616,1760055049830,-500.0,0.00021917,2]
[390465617,1760055049839,-1505.65,0.00021917,2]
[390465618,1760055049849,-753.64,0.00021917,2]
[390465619,1760055049858,-500.0,0.00021917,2]
[390465620,1760055049868,-500.0,0.00021917,2]
[390465621,1760055049879,-500.0,0.00021917,2]
[390465622,1760055049889,-894.51,0.00021917,2]
[390465623,1760055049899,-755.15,0.00021917,2]
[390465624,1760055049910,-500.0,0.00021917,2]
[390465625,1760055049920,-2054.1,0.00021917,2]
[390465626,1760055049931,-500.0,0.00021917,2]
[390465627,1760055049941,-500.0,0.00021917,2]
[390465628,1760055049951,-1708.84,0.00021917,2]
[390465629,1760055049961,-797.56,0.00021917,2]
[390465630,1760055049971,-500.0,0.00021917,2]
[390465631,1760055049980,-1305.58,0.00021917,2]
[390465632,1760055049990,-893.16,0.00021917,2]
[390465633,1760055049999,-500.0,0.00021917,2]
[390465634,1760055050009,-500.0,0.00021917,2]
[390465635,1760055050019,-1011.79,0.00021917,2]
[390465636,1760055050028,-500.0,0.00021917,2]
[390465637,1760055050037,-500.0,0.00021917,2]
[390465638,1760055050047,-1545.18,0.00021917,2]
[390465639,1760055050056,-500.0,0.00021917,2]
[390465640,1760055050065,-500.0,0.00021917,2]
[390465641,1760055050074,-608.32,0.00021917,2]
[390465642,1760055050083,-226.19779641,0.00021917,2]
[390465643,1760055050093,-3184.22,0.00021917,2]
[390465644,1760055050103,-835.97,0.00021917,2]
[390465645,1760055050115,-536.0,0.00021917,2]
[390465646,1760055050124,-1079.45,0.00021917,2]
[390465647,1760055050135,-500.0,0.00021917,2]
[390465648,1760055050145,-505.60072778,0.00021917,2]
[390465649,1760055050155,-1311.32,0.00021917,2]
[390465650,1760055050164,-3295.51,0.00021917,2]
[390465651,1760055050173,-1164.98811485,0.00021917,2]
[390465652,1760055050187,-569.69188515,0.00021917,2]
[390465653,1760055050204,-500.0,0.00021917,2]
[390465654,1760055050213,-10432.06,0.00021917,2]
[390465655,1760055050223,-1257.88,0.00021917,2]
[390465656,1760055050233,-500.0,0.00021917,2]
[390465657,1760055050243,-500.0,0.00021917,2]
[390465658,1760055050252,-302.07963955,0.00021917,2]
[390465659,1760055050261,-2208.5,0.00021917,2]
[390465660,1760055050270,-500.0,0.00021917,2]
[390465661,1760055050279,-500.0,0.00021917,2]
[390465662,1760055050288,-4412.24,0.00021917,2]
[390465663,1760055050296,-500.0,0.00021917,2]
[390465664,1760055050305,-500.0,0.00021917,2]
[390465665,1760055050314,-875.07,0.00021917,2]
[390465666,1760055050324,-500.0,0.00021917,2]
[390465667,1760055050333,-56.68013837,0.00021917,2]
[390465668,1760055050345,-443.31986163,0.00021917,2]
[390465669,1760055050355,-500.0,0.00021917,2]
[390465670,1760055050364,-524.95,0.00021917,2]
[390465671,1760055050373,-500.0,0.00021917,2]
[390465672,1760055050383,-500.0,0.00021917,2]
[390465673,1760055050392,-514.34936018,0.00021917,2]
[390465674,1760055050403,-22.41063982,0.00021917,2]
[390465675,1760055050412,-2866.79,0.00021917,2]
[390465676,1760055050421,-463.55,0.00021917,2]
[390465677,1760055050430,-1581.22,0.00021917,2]
[390465678,1760055050439,-501.39009659,0.00021917,2]
[390465679,1760055050448,-961.24860695,0.00021917,2]
[390465680,1760055050459,-4042.17016174,0.00021917,2]
[390465681,1760055050469,-2265.79635968,0.00021917,2]
[390465682,1760055050572,-302.0,0.00021917,2]
[390465683,1760055050584,-5786.16487163,0.00021917,2]
[390465684,1760055050593,-3380.74,0.00021917,2]
[390465685,1760055050606,-851.92,0.00021917,2]
[390465686,1760055050615,-1068.96,0.00021917,2]
[390465687,1760055050624,-8112.59,0.00021917,2]
[390465688,1760055050634,-500.0,0.00021917,2]
[390465689,1760055050643,-500.0,0.00021917,2]
[390465690,1760055050652,-500.0,0.00021917,2]
[390465691,1760055050662,-500.0,0.00021917,2]
[390465692,1760055050672,-1280.95,0.00021917,2]
[390465693,1760055050682,-500.0,0.00021917,2]
[390465694,1760055050691,-1227.58,0.00021917,2]
[390465695,1760055050701,-500.0,0.00021917,2]
[390465696,1760055050711,-500.0,0.00021917,2]
[390465697,1760055050720,-500.0,0.00021917,2]
[390465698,1760055050731,-500.0,0.00021917,2]
[390465699,1760055050742,-500.0,0.00021917,2]
[390465700,1760055050752,-500.0,0.00021917,2]
[390465701,1760055050761,-726.99,0.00021917,2]
[390465702,1760055050770,-521.68,0.00021917,2]
[390465703,1760055050778,-500.0,0.00021917,2]
[390465704,1760055050787,-509.19,0.00021917,2]
[390465705,1760055050796,-500.0,0.00021917,2]
[390465706,1760055050805,-500.0,0.00021917,2]
[390465707,1760055050814,-551.92,0.00021917,2]
[390465708,1760055050824,-500.0,0.00021917,2]
[390465709,1760055050832,-3612.12,0.00021917,2]
[390465710,1760055050841,-500.0,0.00021917,2]
[390465711,1760055050851,-500.0,0.00021917,2]
[390465712,1760055050860,-1955.33,0.00021917,2]
[390465713,1760055050870,-500.0,0.00021917,2]
[390465714,1760055050881,-500.0,0.00021917,2]
[390465715,1760055050890,-500.0,0.00021917,2]
[390465716,1760055050899,-500.0,0.00021917,2]
[390465717,1760055050909,-500.0,0.00021917,2]
[390465718,1760055050919,-500.0,0.00021917,2]
[390465719,1760055050930,-989.72,0.00021917,2]
[390465720,1760055050939,-500.0,0.00021917,2]
[390465721,1760055050948,-500.0,0.00021917,2]
[390465722,1760055050958,-526.05,0.00021917,2]
[390465723,1760055050967,-1126.27,0.00021917,2]
[390465724,1760055050977,-1469.89,0.00021917,2]
[390465725,1760055050986,-500.0,0.00021917,2]
[390465726,1760055050996,-1817.95,0.00021917,2]
[390465727,1760055051005,-500.0,0.00021917,2]
[390465728,1760055051015,-500.0,0.00021917,2]
[390465729,1760055051025,-500.0,0.00021917,2]
[390465730,1760055051037,-1093.09,0.00021917,2]
[390465731,1760055051047,-500.0,0.00021917,2]
[390465732,1760055051058,-1955.98,0.00021917,2]
[390465733,1760055051067,-500.0,0.00021917,2]
[390465734,1760055051076,-3463.61,0.00021917,2]
[390465735,1760055051085,-500.0,0.00021917,2]
[390465736,1760055051095,-500.0,0.00021917,2]
[390465737,1760055051104,-1046.59,0.00021917,2]
[390465738,1760055051113,-2413.66,0.00021917,2]
[390465739,1760055051122,-500.0,0.00021917,2]
[390465740,1760055051131,-623.3,0.00021917,2]
[390465741,1760055051140,-2139.23,0.00021917,2]
[390465742,1760055051150,-1578.37,0.00021917,2]
[390465743,1760055051159,-500.0,0.00021917,2]
[390465744,1760055051168,-500.0,0.00021917,2]
[390465745,1760055051177,-547.9,0.00021917,2]
[390465746,1760055051186,-500.0,0.00021917,2]
[390465747,1760055051197,-407.30676318,0.00021917,2]
[390465748,1760055051206,-2291.09,0.00021917,2]
[390465749,1760055051215,-500.0,0.00021917,2]
[390465750,1760055051225,-725.21,0.00021917,2]
[390465751,1760055051235,-500.0,0.00021917,2]
[390465752,1760055051244,-119.31759439,0.00021917,2]
[390465753,1760055051258,-380.68240561,0.00021917,2]
[390465754,1760055051267,-71.52342146,0.00021917,2]
[390465755,1760055051278,-883.39595249,0.00021917,2]
[390465756,1760055051305,-273.90062605,0.00021917,2]
[390465757,1760055051314,-2278.33,0.00021917,2]
[390465758,1760055051323,-743.18,0.00021917,2]
[390465759,1760055051332,-403.07409649,0.00021917,2]
[390465760,1760055051341,-81.14391597,0.00021917,2]
[390465761,1760055051370,-1000.0,0.00021917,2]
[390465762,1760055052390,-723.0,0.00021917,2]
[390465763,1760055052400,-242.58608403,0.00021917,2]
[390465764,1760055052410,-500.0,0.00021917,2]
[390465765,1760055052419,-500.0,0.00021917,2]
[390465766,1760055052429,-500.0,0.00021917,2]
[390465767,1760055052439,-599.38,0.00021917,2]
[390465768,1760055052447,-2973.94681502,0.00021917,2]
[390465769,1760055052460,-617.4,0.00021917,2]
[390465770,1760055054258,-1918.82318498,0.00021917,2]
[390465771,1760055054269,-318.03,0.00021917,2]
[390465772,1760055054279,-500.0,0.00021917,2]
[390465773,1760055054289,-837.86,0.00021917,2]
[390465774,1760055054298,-1465.93,0.00021917,2]
[390465775,1760055054308,-345.28292906,0.00021917,2]
[390465776,1760055054317,-2339.37,0.00021917,2]
[390465777,1760055054327,-500.0,0.00021917,2]
[390465778,1760055054337,-500.0,0.00021917,2]
[390465779,1760055054346,-1927.98,0.00021917,2]
[390465780,1760055054355,-500.0,0.00021917,2]
[390465781,1760055054364,-500.0,0.00021917,2]
[390465782,1760055054374,-2648.34,0.00021917,2]
[390465783,1760055054383,-1389.82,0.00021917,2]
[390465784,1760055054393,-1966.38,0.00021917,2]
[390465785,1760055054403,-500.0,0.00021917,2]
[390465786,1760055054412,-817.49,0.00021917,2]
[390465787,1760055054421,-6099.24,0.00021917,2]
[390465788,1760055054430,-500.0,0.00021917,2]
[390465789,1760055054439,-804.19,0.00021917,2]
[390465790,1760055054448,-795.14,0.00021917,2]
[390465791,1760055054457,-500.0,0.00021917,2]
[390465792,1760055054467,-500.0,0.00021917,2]
[390465793,1760055054476,-592.77,0.00021917,2]
[390465794,1760055054485,-1260.96,0.00021917,2]
[390465795,1760055054494,-789.15,0.00021917,2]
[390465796,1760055054503,-520.91555442,0.00021917,2]
[390465797,1760055054512,-500.0,0.00021917,2]
[390465798,1760055054522,-500.0,0.00021917,2]
[390465799,1760055054531,-500.0,0.00021917,2]
[390465800,1760055054540,-1465.6,0.00021917,2]
[390465801,1760055054550,-1244.32,0.00021917,2]
[390465802,1760055054559,-2758.76,0.00021917,2]
[390465803,1760055054568,-1938.95,0.00021917,2]
[390465804,1760055054578,-500.0,0.00021917,2]
[390465805,1760055054587,-1702.52,0.00021917,2]
[390465806,1760055054596,-972.63,0.00021917,2]
[390465807,1760055054605,-500.0,0.00021917,2]
[390465808,1760055054614,-500.0,0.00021917,2]
[390465809,1760055054623,-500.0,0.00021917,2]
[390465810,1760055054632,-947.14,0.00021917,2]
[390465811,1760055054641,-500.0,0.00021917,2]
[390465812,1760055054651,-1134.04,0.00021917,2]
[390465813,1760055054660,-500.0,0.00021917,2]
[390465814,1760055054672,-500.0,0.00021917,2]
[390465815,1760055054683,-2960.31,0.00021917,2]
[390465816,1760055054693,-500.0,0.00021917,2]
[390465817,1760055054702,-1406.69,0.00021917,2]
[390465818,1760055054711,-500.0,0.00021917,2]
[390465819,1760055054720,-771.37,0.00021917,2]
[390465820,1760055054730,-2910.04,0.00021917,2]
[390465821,1760055054741,-3203.99,0.00021917,2]
[390465822,1760055054754,-311.15303846,0.00021917,2]
[390465823,1760055054763,-2059.32,0.00021917,2]
[390465824,1760055054773,-1442.2,0.00021917,2]
[390465825,1760055054782,-3223.25,0.00021917,2]
[390465826,1760055054791,-500.0,0.00021917,2]
[390465827,1760055054800,-500.0,0.00021917,2]
[390465828,1760055054811,-2661.27,0.00021917,2]
[390465829,1760055054820,-21872.53,0.00021917,2]
[390465830,1760055054829,-500.0,0.00021917,2]
[390465831,1760055054838,-2796.74,0.00021917,2]
[390465832,1760055054847,-1668.21,0.00021917,2]
[390465833,1760055054856,-500.0,0.00021917,2]
[390465834,1760055054865,-500.0,0.00021917,2]
[390465835,1760055054875,-682.3,0.00021917,2]
[390465836,1760055054884,-1763.42,0.00021917,2]
[390465837,1760055054893,-500.0,0.00021917,2]
[390465838,1760055054902,-500.0,0.00021917,2]
[390465839,1760055054912,-500.0,0.00021917,2]
[390465840,1760055054921,-500.0,0.00021917,2]
[390465841,1760055054930,-921.0,0.00021917,2]
[390465842,1760055054940,-5469.14,0.00021917,2]
[390465843,1760055054949,-2553.41,0.00021917,2]
[390465844,1760055054959,-799.71,0.00021917,2]
[390465845,1760055054968,-1863.44,0.00021917,2]
[390465846,1760055054977,-537.13,0.00021917,2]
[390465847,1760055054986,-500.0,0.00021917,2]
[390465848,1760055054995,-500.0,0.00021917,2]
[390465849,1760055055004,-500.0,0.00021917,2]
[390465850,1760055055014,-7126.36,0.00021917,2]
[390465851,1760055055023,-500.0,0.00021917,2]
[390465852,1760055055032,-1601.46,0.00021917,2]
[390465853,1760055055042,-500.0,0.00021917,2]
[390465854,1760055055051,-201.8104774,0.00021917,2]
[390465855,1760055055060,-2882.43,0.00021917,2]
[390465856,1760055055070,-2812.96,0.00021917,2]
[390465857,1760055055079,-500.0,0.00021917,2]
[390465858,1760055055088,-500.0,0.00021917,2]
[390465859,1760055055098,-2611.8,0.00021917,2]
[390465860,1760055055108,-500.0,0.00021917,2]
[390465861,1760055055117,-500.0,0.00021917,2]
[390465862,1760055055127,-500.0,0.00021917,2]
[390465863,1760055055136,-1720.24,0.00021917,2]
[390465864,1760055055145,-248.08676542,0.00021917,2]
[390465865,1760055055154,-2324.07,0.00021917,2]
[390465866,1760055055163,-3384.41,0.00021917,2]
[390465867,1760055055172,-500.0,0.00021917,2]
[390465868,1760055055181,-500.0,0.00021917,2]
[390465869,1760055055191,-1841.97,0.00021917,2]
[390465870,1760055055204,-200.0,0.00021917,2]
[390465871,1760055055214,-500.0,0.00021917,2]
[390465872,1760055055223,-500.0,0.00021917,2]
[390465873,1760055055233,-500.0,0.00021917,2]
[390465874,1760055055242,-500.0,0.00021917,2]
[390465875,1760055055252,-500.0,0.00021917,2]
[390465876,1760055055261,-500.0,0.00021917,2]
[390465877,1760055055271,-2949.52,0.00021917,2]
[390465878,1760055055280,-2862.62,0.00021917,2]
[390465879,1760055055289,-1130.04,0.00021917,2]
[390465880,1760055055298,-2051.47,0.00021917,2]
[390465881,1760055055307,-580.31,0.00021917,2]
[390465882,1760055055316,-2022.71,0.00021917,2]
[390465883,1760055055326,-500.0,0.00021917,2]
[390465884,1760055055335,-951.82,0.00021917,2]
[390465885,1760055055349,-500.0,0.00021917,2]
[390465886,1760055055358,-981.14,0.00021917,2]
[390465887,1760055055368,-1389.97,0.00021917,2]
[390465888,1760055055378,-2025.81,0.00021917,2]
[390465889,1760055055387,-500.0,0.00021917,2]
[390465890,1760055055397,-500.0,0.00021917,2]
[390465891,1760055055407,-500.0,0.00021917,2]
[390465892,1760055055416,-500.0,0.00021917,2]
[390465893,1760055055430,-1127.67,0.00021917,2]
[390465894,1760055055439,-1664.68,0.00021917,2]
[390465895,1760055055448,-500.0,0.00021917,2]
[390465896,1760055055458,-2222.59,0.00021917,2]
[390465897,1760055055467,-500.0,0.00021917,2]
[390465898,1760055055709,-978.18,0.00021917,2]
[390465899,1760055055719,-2593.85,0.00021917,2]
[390465900,1760055055729,-500.0,0.00021917,2]
[390465901,1760055055738,-2245.83,0.00021917,2]
[390465902,1760055055748,-1676.95,0.00021917,2]
[390465903,1760055055757,-1644.43,0.00021917,2]
[390465904,1760055055767,-984.68,0.00021917,2]
[390465905,1760055055777,-500.0,0.00021917,2]
[390465906,1760055055786,-848.34,0.00021917,2]
[390465907,1760055055795,-1768.89,0.00021917,2]
[390465908,1760055055805,-1492.32,0.00021917,2]
[390465909,1760055055815,-500.0,0.00021917,2]
[390465910,1760055055826,-500.0,0.00021917,2]
[390465911,1760055055836,-1702.55,0.00021917,2]
[390465912,1760055055845,-1454.14,0.00021917,2]
[390465913,1760055055854,-1327.58,0.00021917,2]
[390465914,1760055055863,-1327.58,0.00021917,2]
[390465915,1760055055871,-1327.58,0.00021917,2]
[390465916,1760055055880,-1327.58,0.00021917,2]
[390465917,1760055055890,-500.0,0.00021917,2]
[390465918,1760055055899,-500.0,0.00021917,2]
[390465919,1760055055908,-1450.2,0.00021917,2]
[390465920,1760055055917,-763.7,0.00021917,2]
[390465921,1760055055927,-500.0,0.00021917,2]
[390465922,1760055055935,-500.0,0.00021917,2]
[390465923,1760055055945,-500.0,0.00021917,2]
[390465924,1760055055955,-615.6,0.00021917,2]
[390465925,1760055055965,-723.21,0.00021917,2]
[390465926,1760055055974,-500.0,0.00021917,2]
[390465927,1760055055984,-2092.33,0.00021917,2]
[390465928,1760055055994,-5048.2,0.00021917,2]
[390465929,1760055056003,-1865.09,0.00021917,2]
[390465930,1760055056012,-500.0,0.00021917,2]
[390465931,1760055056022,-899.07,0.00021917,2]
[390465932,1760055056031,-504.75,0.00021917,2]
[390465933,1760055056040,-500.0,0.00021917,2]
[390465934,1760055056049,-500.0,0.00021917,2]
[390465935,1760055056058,-500.0,0.00021917,2]
[390465936,1760055056067,-1562.51,0.00021917,2]
[390465937,1760055056076,-624.86,0.00021917,2]
[390465938,1760055056085,-500.0,0.00021917,2]
[390465939,1760055056093,-1148.83,0.00021917,2]
[390465940,1760055056102,-776.97,0.00021917,2]
[390465941,1760055056112,-981.74,0.00021917,2]
[390465942,1760055056121,-280.16411993,0.00021917,2]
[390465943,1760055056130,-689.03,0.00021917,2]
[390465944,1760055056139,-500.0,0.00021917,2]
[390465945,1760055056148,-2686.34,0.00021917,2]
[390465946,1760055056158,-500.0,0.00021917,2]
[390465947,1760055056167,-1155.44,0.00021917,2]
[390465948,1760055056177,-10125.51,0.00021917,2]
[390465949,1760055056186,-500.0,0.00021917,2]
[390465950,1760055056197,-872.59,0.00021917,2]
[390465951,1760055056207,-2513.37,0.00021917,2]
[390465952,1760055056216,-500.0,0.00021917,2]
[390465953,1760055056225,-717.2,0.00021917,2]
[390465954,1760055056235,-1547.08,0.00021917,2]
[390465955,1760055056244,-1876.11,0.00021917,2]
[390465956,1760055056254,-1054.59,0.00021917,2]
[390465957,1760055056263,-500.0,0.00021917,2]
[390465958,1760055056273,-546.45,0.00021917,2]
[390465959,1760055056283,-1403.08,0.00021917,2]
[390465960,1760055056292,-500.0,0.00021917,2]
[390465961,1760055056301,-741.19,0.00021917,2]
[390465962,1760055056310,-500.0,0.00021917,2]
[390465963,1760055056319,-500.0,0.00021917,2]
[390465964,1760055056329,-500.0,0.00021917,2]
[390465965,1760055056338,-500.0,0.00021917,2]
[390465966,1760055056347,-2150.19,0.00021917,2]
[390465967,1760055056357,-500.52684602,0.00021917,2]
[390465968,1760055056367,-2107.21,0.00021917,2]
[390465969,1760055056376,-374.4199795,0.00021917,2]
[390465970,1760055056385,-4539.55,0.00021917,2]
[390465971,1760055056394,-541.26,0.00021917,2]
[390465972,1760055056404,-2737.25,0.00021917,2]
[390465973,1760055056413,-5284.53,0.00021917,2]
[390465974,1760055056423,-4392.23,0.00021917,2]
[390465975,1760055056432,-500.0,0.00021917,2]
[390465976,1760055056441,-801.76,0.00021917,2]
[390465977,1760055056450,-500.0,0.00021917,2]
[390465978,1760055056459,-522.69,0.00021917,2]
[390465979,1760055056469,-416.34175818,0.00021917,2]
[390465980,1760055056478,-1930.54,0.00021917,2]
[390465981,1760055056487,-4611.36,0.00021917,2]
[390465982,1760055056496,-1089.03,0.00021917,2]
[390465983,1760055056505,-500.0,0.00021917,2]
[390465984,1760055056515,-552.42,0.00021917,2]
[390465985,1760055056524,-500.0,0.00021917,2]
[390465986,1760055056533,-206.48524115,0.00021917,2]
[390465987,1760055056543,-500.0,0.00021917,2]
[390465988,1760055056552,-2872.0,0.00021917,2]
[390465989,1760055056562,-203.25496125,0.00021917,2]
[390465990,1760055056571,-500.0,0.00021917,2]
[390465991,1760055056580,-500.0,0.00021917,2]
[390465992,1760055056590,-1750.51,0.00021917,2]
[390465993,1760055056599,-784.87,0.00021917,2]
[390465994,1760055056609,-6894.68,0.00021917,2]
[390465995,1760055056618,-500.0,0.00021917,2]
[390465996,1760055056628,-500.0,0.00021917,2]
[390465997,1760055056637,-500.0,0.00021917,2]
[390465998,1760055056646,-1699.56,0.00021917,2]
[390465999,1760055056656,-954.65,0.00021917,2]
[390466000,1760055056665,-500.0,0.00021917,2]
[390466001,1760055056674,-3464.48,0.00021917,2]
[390466002,1760055056686,-3060.46,0.00021917,2]
[390466003,1760055056695,-500.0,0.00021917,2]
[390466004,1760055056704,-1123.69,0.00021917,2]
[390466005,1760055056714,-4099.01,0.00021917,2]
[390466006,1760055056723,-1916.01,0.00021917,2]
[390466007,1760055056732,-500.0,0.00021917,2]
[390466008,1760055056742,-1622.26,0.00021917,2]
[390466009,1760055056751,-1018.51,0.00021917,2]
[390466010,1760055056760,-1295.39,0.00021917,2]
[390466011,1760055056770,-500.0,0.00021917,2]
[390466012,1760055056779,-500.0,0.00021917,2]
[390466013,1760055056788,-796.34,0.00021917,2]
[390466014,1760055056798,-1135.6,0.00021917,2]
[390466015,1760055056807,-6553.89,0.00021917,2]
[390466016,1760055056816,-2383.55,0.00021917,2]
[390466017,1760055056825,-500.0,0.00021917,2]
[390466018,1760055056834,-632.21,0.00021917,2]
[390466019,1760055056843,-837.86,0.00021917,2]
[390466020,1760055056852,-1629.56,0.00021917,2]
[390466021,1760055056861,-500.0,0.00021917,2]
[390466022,1760055056871,-1596.31,0.00021917,2]
[390466023,1760055056880,-3019.53,0.00021917,2]
[390466024,1760055056889,-501.71,0.00021917,2]
[390466025,1760055056898,-500.0,0.00021917,2]
[390466026,1760055056907,-1157.24,0.00021917,2]
[390466027,1760055056916,-3219.16,0.00021917,2]
[390466028,1760055056925,-500.0,0.00021917,2]
[390466029,1760055056934,-997.44,0.00021917,2]
[390466030,1760055056943,-500.0,0.00021917,2]
[390466031,1760055056953,-1968.96,0.00021917,2]
[390466032,1760055056963,-500.0,0.00021917,2]
[390466033,1760055056972,-500.0,0.00021917,2]
[390466034,1760055056981,-500.0,0.00021917,2]
[390466035,1760055056990,-500.0,0.00021917,2]
[390466036,1760055057000,-705.75,0.00021917,2]
[390466037,1760055057009,-2562.67,0.00021917,2]
[390466038,1760055057019,-500.0,0.00021917,2]
[390466039,1760055057028,-500.0,0.00021917,2]
[390466040,1760055057038,-533.29,0.00021917,2]
[390466041,1760055057048,-5257.65,0.00021917,2]
[390466042,1760055057057,-500.0,0.00021917,2]
[390466043,1760055057067,-3033.78,0.00021917,2]
[390466044,1760055057076,-1915.74,0.00021917,2]
[390466045,1760055057085,-12892.43,0.00021917,2]
[390466046,1760055057095,-500.0,0.00021917,2]
[390466047,1760055057104,-500.0,0.00021917,2]
[390466048,1760055057113,-1196.82,0.00021917,2]
[390466049,1760055057122,-500.0,0.00021917,2]
[390466050,1760055057131,-500.0,0.00021917,2]
[390466051,1760055057146,-500.0,0.00021917,2]
[390466052,1760055057156,-500.0,0.00021917,2]
[390466053,1760055057165,-10403.69,0.00021917,2]
[390466054,1760055057175,-500.0,0.00021917,2]
[390466055,1760055057185,-500.0,0.00021917,2]
[390466056,1760055057196,-500.0,0.00021917,2]
[390466057,1760055057207,-500.0,0.00021917,2]
[390466058,1760055057217,-500.0,0.00021917,2]
[390466059,1760055057226,-486.42,0.00021917,2]
[390466060,1760055057235,-2500.91,0.00021917,2]
[390466061,1760055057246,-2088.61,0.00021917,2]
[390466062,1760055057256,-500.0,0.00021917,2]
[390466063,1760055057266,-500.0,0.00021917,2]
[390466064,1760055057279,-100.66134249,0.00021917,2]
[390466065,1760055057316,-399.33865751,0.00021917,2]
[390466066,1760055057325,-368.92884249,0.00021917,2]
[390466067,1760055057337,-131.07115751,0.00021917,2]
[390466068,1760055057346,-2547.06,0.00021917,2]
[390466069,1760055057355,-500.0,0.00021917,2]
[390466070,1760055057365,-500.0,0.00021917,2]
[390466071,1760055057375,-500.0,0.00021917,2]
[390466072,1760055057384,-500.0,0.00021917,2]
[390466073,1760055057393,-3696.96884349,0.00021917,2]
[390466074,1760055057422,-803.09891846,0.00021917,2]
[390466075,1760055057475,-4019.35223805,0.00021917,2]
[390466076,1760055057484,-500.0,0.00021917,2]
[390466077,1760055057493,-1568.14776195,0.00021917,2]
[390466078,1760055057662,-33.88223805,0.00021917,2]
[390466079,1760055057672,-388.30828749,0.00021917,2]
[390466080,1760055057682,-692.28,0.00021917,2]
[390466081,1760055057692,-500.0,0.00021917,2]
[390466082,1760055057701,-25271.64,0.00021917,2]
[390466083,1760055057710,-1230.84,0.00021917,2]
[390466084,1760055057719,-2269.99,0.00021917,2]